[Event "*** Titled Tuesday Blitz"]
[Site "Chess.com"]
[Date "2018.06.05"]
[Round "10"]
[White "Ind1anStar"]
[Black "BlackBoarder"]
[Result "1/2-1/2"]
[WhiteElo "2356"]
[BlackElo "2261"]
[TimeControl "180+2"]
[EndTime "15:32:34 PDT"]
[Termination "Game drawn by 50-move rule"]

1. e4 {[%clk 0:03:01.9]} 1... e6 {[%clk 0:02:52]} 2. d4 {[%clk 0:03:02.5]} 2...
d5 {[%clk 0:02:53.3]} 3. exd5 {[%clk 0:03:00.1]} 3... exd5 {[%clk 0:02:54]} 4.
Nc3 {[%clk 0:03:01.6]} 4... Nf6 {[%clk 0:02:53.9]} 5. Bd3 {[%clk 0:03:01.5]}
5... c5 {[%clk 0:02:54.4]} 6. dxc5 {[%clk 0:02:59.1]} 6... Bxc5 {[%clk
0:02:56.3]} 7. Nge2 {[%clk 0:02:58.1]} 7... O-O {[%clk 0:02:56.7]} 8. O-O {[%clk
0:02:57.8]} 8... h6 {[%clk 0:02:58.1]} 9. h3 {[%clk 0:02:56.2]} 9... Nc6 {[%clk
0:02:59]} 10. Bf4 {[%clk 0:02:55.3]} 10... Re8 {[%clk 0:02:55.5]} 11. Qd2 {[%clk
0:02:56.1]} 11... Ne4 {[%clk 0:02:30]} 12. Bxe4 {[%clk 0:02:51.9]} 12... dxe4
{[%clk 0:02:30.9]} 13. Qxd8 {[%clk 0:02:52.7]} 13... Nxd8 {[%clk 0:02:32.1]} 14.
Rad1 {[%clk 0:02:41.8]} 14... Bf5 {[%clk 0:02:22.8]} 15. Ng3 {[%clk 0:02:40.3]}
15... Bg6 {[%clk 0:02:18.7]} 16. Rfe1 {[%clk 0:02:35]} 16... Bb4 {[%clk
0:01:50.1]} 17. Ngxe4 {[%clk 0:02:32.6]} 17... Ne6 {[%clk 0:01:39.2]} 18. Bd6
{[%clk 0:02:29.6]} 18... Bxc3 {[%clk 0:01:32.5]} 19. Nxc3 {[%clk 0:02:25.1]}
19... Bxc2 {[%clk 0:01:33]} 20. Rd2 {[%clk 0:02:26]} 20... Bg6 {[%clk
0:01:31.4]} 21. Nd5 {[%clk 0:02:24.9]} 21... Red8 {[%clk 0:01:19.7]} 22. Ne7+
{[%clk 0:02:22.7]} 22... Kh7 {[%clk 0:01:19]} 23. Nxg6 {[%clk 0:02:20.6]} 23...
Kxg6 {[%clk 0:01:19.2]} 24. Rd3 {[%clk 0:02:18]} 24... Kh7 {[%clk 0:01:12.1]}
25. Red1 {[%clk 0:02:18.8]} 25... Rac8 {[%clk 0:01:11.3]} 26. R1d2 {[%clk
0:02:19.1]} 26... Ng5 {[%clk 0:01:03.9]} 27. f3 {[%clk 0:02:15.5]} 27... Rc1+
{[%clk 0:01:01.2]} 28. Kh2 {[%clk 0:02:12.9]} 28... Ne6 {[%clk 0:01:01]} 29. Rd5
{[%clk 0:02:08.6]} 29... Ra1 {[%clk 0:00:55.1]} 30. a3 {[%clk 0:02:08.3]} 30...
Rb1 {[%clk 0:00:55.9]} 31. Be5 {[%clk 0:02:04.1]} 31... Rxd5 {[%clk 0:00:56.2]}
32. Rxd5 {[%clk 0:02:06]} 32... Kg6 {[%clk 0:00:38.9]} 33. f4 {[%clk 0:02:02.4]}
33... f6 {[%clk 0:00:29.3]} 34. Bb8 {[%clk 0:01:51.9]} 34... f5 {[%clk
0:00:22.5]} 35. b4 {[%clk 0:01:50]} 35... Rb3 {[%clk 0:00:22.1]} 36. g4 {[%clk
0:01:46.7]} 36... fxg4 {[%clk 0:00:06.6]} 37. f5+ {[%clk 0:01:47.3]} 37... Kf6
{[%clk 0:00:08]} 38. Be5+ {[%clk 0:01:38.6]} 38... Kxf5 {[%clk 0:00:07.8]} 39.
hxg4+ {[%clk 0:01:38.8]} 39... Kxg4 {[%clk 0:00:07.5]} 40. Rd6 {[%clk
0:01:35.6]} 40... Kf5 {[%clk 0:00:07.5]} 41. Rd5 {[%clk 0:01:33.6]} 41... Ke4
{[%clk 0:00:07.3]} 42. Rb5 {[%clk 0:01:33.8]} 42... a6 {[%clk 0:00:06.5]} 43.
Ra5 {[%clk 0:01:30.8]} 43... b6 {[%clk 0:00:07.3]} 44. Rxa6 {[%clk 0:01:31.5]}
44... Kxe5 {[%clk 0:00:08.6]} 45. Rxb6 {[%clk 0:01:33]} 45... Rxa3 {[%clk
0:00:09.8]} 46. Rb5+ {[%clk 0:01:34.4]} 46... Kf6 {[%clk 0:00:09.8]} 47. Rb6
{[%clk 0:01:35.3]} 47... Rb3 {[%clk 0:00:10.9]} 48. b5 {[%clk 0:01:36.7]} 48...
g5 {[%clk 0:00:11.7]} 49. Rb8 {[%clk 0:01:37.1]} 49... Ke5 {[%clk 0:00:12]} 50.
b6 {[%clk 0:01:38.5]} 50... h5 {[%clk 0:00:12.1]} 51. b7 {[%clk 0:01:38.7]}
51... h4 {[%clk 0:00:13.5]} 52. Kg2 {[%clk 0:01:38.4]} 52... g4 {[%clk
0:00:12.5]} 53. Rg8 {[%clk 0:01:36.5]} 53... Rb2+ {[%clk 0:00:12.8]} 54. Kg1
{[%clk 0:01:36.6]} 54... Rxb7 {[%clk 0:00:12.4]} 55. Rxg4 {[%clk 0:01:37.3]}
55... Rh7 {[%clk 0:00:12.6]} 56. Kh2 {[%clk 0:01:32.6]} 56... Kf5 {[%clk
0:00:13.8]} 57. Ra4 {[%clk 0:01:32.7]} 57... Nf4 {[%clk 0:00:14]} 58. Ra5+
{[%clk 0:01:27.5]} 58... Kg4 {[%clk 0:00:14.9]} 59. Ra8 {[%clk 0:01:27.9]} 59...
Rb7 {[%clk 0:00:14.4]} 60. Rg8+ {[%clk 0:01:29]} 60... Kf3 {[%clk 0:00:15.4]}
61. Kh1 {[%clk 0:01:27.5]} 61... h3 {[%clk 0:00:15.9]} 62. Kh2 {[%clk
0:01:25.6]} 62... Rb2+ {[%clk 0:00:15.4]} 63. Kh1 {[%clk 0:01:27]} 63... Rb5
{[%clk 0:00:12.1]} 64. Kh2 {[%clk 0:01:25.3]} 64... Rh5 {[%clk 0:00:13]} 65.
Rg3+ {[%clk 0:01:22.9]} 65... Ke4 {[%clk 0:00:13.6]} 66. Ra3 {[%clk 0:01:22.4]}
66... Kf5 {[%clk 0:00:14.8]} 67. Ra5+ {[%clk 0:01:22.6]} 67... Kg4 {[%clk
0:00:16.1]} 68. Ra8 {[%clk 0:01:21.6]} 68... Rg5 {[%clk 0:00:12.4]} 69. Ra4
{[%clk 0:01:18.4]} 69... Rf5 {[%clk 0:00:05.1]} 70. Ra8 {[%clk 0:01:17.7]} 70...
Kh4 {[%clk 0:00:06.1]} 71. Ra4 {[%clk 0:01:16.2]} 71... Kg5 {[%clk 0:00:04.3]}
72. Ra8 {[%clk 0:01:13.2]} 72... Kg4 {[%clk 0:00:03.7]} 73. Ra4 {[%clk
0:01:13.1]} 73... Rg5 {[%clk 0:00:04.6]} 74. Rb4 {[%clk 0:01:11.9]} 74... Kf5
{[%clk 0:00:05.3]} 75. Rb5+ {[%clk 0:01:12.4]} 75... Kf6 {[%clk 0:00:06.7]} 76.
Rb6+ {[%clk 0:01:12.6]} 76... Kf7 {[%clk 0:00:05.9]} 77. Rb4 {[%clk 0:01:07.3]}
77... Rg2+ {[%clk 0:00:04.9]} 78. Kh1 {[%clk 0:01:08.5]} 78... Rf2 {[%clk
0:00:06.2]} 79. Kg1 {[%clk 0:01:04.8]} 79... Rf3 {[%clk 0:00:07.1]} 80. Kh2
{[%clk 0:01:04.2]} 80... Ke6 {[%clk 0:00:07.2]} 81. Rb6+ {[%clk 0:01:00.1]}
81... Kf5 {[%clk 0:00:07.1]} 82. Rb8 {[%clk 0:00:56.7]} 82... Rf2+ {[%clk
0:00:07]} 83. Kg1 {[%clk 0:00:56.6]} 83... Rg2+ {[%clk 0:00:05.2]} 84. Kh1
{[%clk 0:00:57.6]} 84... Rg3 {[%clk 0:00:06.4]} 85. Kh2 {[%clk 0:00:55.2]} 85...
Rf3 {[%clk 0:00:07.7]} 86. Rf8+ {[%clk 0:00:53.3]} 86... Ke4 {[%clk 0:00:08.8]}
87. Re8+ {[%clk 0:00:53.9]} 87... Kd3 {[%clk 0:00:09.6]} 88. Re7 {[%clk
0:00:51]} 88... Ne2 {[%clk 0:00:06.4]} 89. Rh7 {[%clk 0:00:45.5]} 89... Nf4
{[%clk 0:00:07.1]} 90. Re7 {[%clk 0:00:46.2]} 90... Re3 {[%clk 0:00:08.4]} 91.
Rf7 {[%clk 0:00:42.5]} 91... Ke4 {[%clk 0:00:08.5]} 92. Re7+ {[%clk 0:00:36.6]}
92... Kf3 {[%clk 0:00:09.6]} 93. Rf7 {[%clk 0:00:37.4]} 93... Re2+ {[%clk
0:00:10]} 94. Kh1 {[%clk 0:00:37.6]} 94... Kg3 {[%clk 0:00:08.4]} 95. Rg7+
{[%clk 0:00:38.4]} 95... Kh4 {[%clk 0:00:09.6]} 96. Rh7+ {[%clk 0:00:36.8]}
96... Nh5 {[%clk 0:00:10.8]} 97. Rh8 {[%clk 0:00:35.5]} 97... Kg4 {[%clk
0:00:11.4]} 98. Rg8+ {[%clk 0:00:36.5]} 98... Kf3 {[%clk 0:00:10.3]} 99. Rf8+
{[%clk 0:00:34.3]} 99... Kg4 {[%clk 0:00:09.7]} 100. Rg8+ {[%clk 0:00:35]}
100... Kf4 {[%clk 0:00:09.3]} 101. Rf8+ {[%clk 0:00:34.2]} 101... Kg5 {[%clk
0:00:10.5]} 102. Rg8+ {[%clk 0:00:34.7]} 102... Kf6 {[%clk 0:00:10.4]} 103. Rf8+
{[%clk 0:00:30.8]} 103... Kg5 {[%clk 0:00:03.9]} 104. Rg8+ {[%clk 0:00:31.9]}
104... Kh4 {[%clk 0:00:05.3]} 105. Rh8 {[%clk 0:00:32.6]} 105... Rd2 {[%clk
0:00:04.8]} 106. Kg1 {[%clk 0:00:29.2]} 106... Rc2 {[%clk 0:00:03.3]} 107. Kh1
{[%clk 0:00:29.1]} 107... Rb2 {[%clk 0:00:04.7]} 108. Kg1 {[%clk 0:00:29.8]}
108... Kg4 {[%clk 0:00:05.4]} 109. Rg8+ {[%clk 0:00:29.9]} 109... Kf3 {[%clk
0:00:06.8]} 110. Rf8+ {[%clk 0:00:27.1]} 110... Nf4 {[%clk 0:00:08]} 111. Kh1
{[%clk 0:00:28.5]} 111... Rb1+ {[%clk 0:00:07.8]} 112. Kh2 {[%clk 0:00:28.9]}
112... Rb2+ {[%clk 0:00:09.1]} 113. Kh1 {[%clk 0:00:30.2]} 113... Rf2 {[%clk
0:00:09]} 114. Kg1 {[%clk 0:00:25.9]} 114... Rd2 {[%clk 0:00:06.5]} 115. Kh1
{[%clk 0:00:25.6]} 115... Rd4 {[%clk 0:00:06.5]} 116. Kh2 {[%clk 0:00:25.2]}
116... Ke3 {[%clk 0:00:06.6]} 117. Re8+ {[%clk 0:00:23.7]} 117... Kf3 {[%clk
0:00:07]} 118. Rf8 {[%clk 0:00:22.5]} 118... Kg4 {[%clk 0:00:06.2]} 119. Rg8+
{[%clk 0:00:22.8]} 119... Kf3 {[%clk 0:00:07.1]} 120. Rf8 {[%clk 0:00:24]}
120... Rd2+ {[%clk 0:00:08]} 121. Kh1 {[%clk 0:00:25.3]} 121... Rc2 {[%clk
0:00:09.2]} 122. Kg1 {[%clk 0:00:21.2]} 122... Ke4 {[%clk 0:00:04]} 123. Re8+
{[%clk 0:00:21.3]} 123... Kf5 {[%clk 0:00:05.2]} 124. Rf8+ {[%clk 0:00:22.2]}
124... Kg5 {[%clk 0:00:06.6]} 125. Rg8+ {[%clk 0:00:22.4]} 125... Ng6 {[%clk
0:00:06.7]} 126. Kh1 {[%clk 0:00:23]} 126... Kh5 {[%clk 0:00:07.6]} 127. Rg7
{[%clk 0:00:21.1]} 127... Nh4 {[%clk 0:00:08.3]} 128. Rh7+ {[%clk 0:00:21.4]}
128... Kg4 {[%clk 0:00:09.3]} 129. Rg7+ {[%clk 0:00:22.5]} 129... Kf4 {[%clk
0:00:09.7]} 130. Rf7+ {[%clk 0:00:21.4]} 130... Nf5 {[%clk 0:00:10.8]} 131. Rf8
{[%clk 0:00:20.7]} 131... Kg4 {[%clk 0:00:08.5]} 132. Rg8+ {[%clk 0:00:21.8]}
132... Kf3 {[%clk 0:00:09.8]} 133. Rf8 {[%clk 0:00:23]} 133... Ke4 {[%clk
0:00:08.6]} 134. Re8+ {[%clk 0:00:24.1]} 134... Kd5 {[%clk 0:00:06.2]} 135. Rd8+
{[%clk 0:00:21.1]} 135... Ke4 {[%clk 0:00:02.5]} 136. Re8+ {[%clk 0:00:22]}
136... Kf4 {[%clk 0:00:03.8]} 1/2-1/2